[Event "Titled Tuesday Blitz April 19 Early 2022"]
[White "Hernandez Jimenez, Alexander Andres"]
[Black "Simonovic, Miroslav"]
[WhiteFideId "3900452"]
[BlackFideId "919152"]
[WhiteElo "2098"]
[BlackElo "2043"]
[Result "1-0"]
[Round "03"]
[TimeControl "180+1"]
[Date "2022.04.19"]
[WhiteClock "0:00:48"]
[BlackClock "0:00:05"]

1. e4 {[%clk 0:03:00]}  c5 {[%clk 0:02:59]} 2. Nf3 {[%clk 0:03:00]}  Nc6 {[%clk 0:03:00]} 3. d4 {[%clk 0:03:00]}  cxd4 {[%clk 0:03:01]} 4. Nxd4 {[%clk 0:02:59]}  e5 {[%clk 0:03:02]} 5. Nb5 {[%clk 0:02:58]}  d6 {[%clk 0:03:02]} 6. c4 {[%clk 0:02:56]}  Be7 {[%clk 0:02:58]} 7. N5c3 {[%clk 0:02:51]}  Be6 {[%clk 0:02:57]} 8. Nd5 {[%clk 0:02:49]}  Bxd5 {[%clk 0:02:55]} 9. cxd5 {[%clk 0:02:48]}  Nd4 {[%clk 0:02:55]} 10. Nc3 {[%clk 0:02:48]}  Nf6 {[%clk 0:02:55]} 11. Be3 {[%clk 0:02:48]}  O-O {[%clk 0:02:43]} 12. Bxd4 {[%clk 0:02:47]}  exd4 {[%clk 0:02:44]} 13. Qxd4 {[%clk 0:02:47]}  Rc8 {[%clk 0:02:37]} 14. Be2 {[%clk 0:02:46]}  Nd7 {[%clk 0:02:29]} 15. O-O {[%clk 0:02:45]}  Bf6 {[%clk 0:02:29]} 16. Qd2 {[%clk 0:02:43]}  Qa5 {[%clk 0:02:27]} 17. Rfc1 {[%clk 0:02:37]}  Nc5 {[%clk 0:02:21]} 18. f3 {[%clk 0:02:31]}  Rc7 {[%clk 0:02:15]} 19. Qe3 {[%clk 0:02:16]}  Qb4 {[%clk 0:01:56]} 20. Kh1 {[%clk 0:02:12]}  a6 {[%clk 0:01:42]} 21. f4 {[%clk 0:01:57]}  Bd4 {[%clk 0:01:36]} 22. Qf3 {[%clk 0:01:45]}  Qxb2 {[%clk 0:01:21]} 23. Rab1 {[%clk 0:01:40]}  Qd2 {[%clk 0:01:21]} 24. Bf1 {[%clk 0:01:30]}  Rfc8 {[%clk 0:01:11]} 25. Ne2 {[%clk 0:01:25]}  Qe3 {[%clk 0:00:40]} 26. Nxd4 {[%clk 0:01:23]}  Qxd4 {[%clk 0:00:41]} 27. Rc4 {[%clk 0:01:19]}  Qd2 {[%clk 0:00:29]} 28. Rbc1 {[%clk 0:01:19]}  h6 {[%clk 0:00:13]} 29. e5 {[%clk 0:01:06]}  dxe5 {[%clk 0:00:11]} 30. fxe5 {[%clk 0:01:04]}  Ne6 {[%clk 0:00:10]} 31. dxe6 {[%clk 0:00:58]}  Rxc4 {[%clk 0:00:10]} 32. Rxc4 {[%clk 0:00:58]}  Rxc4 {[%clk 0:00:09]} 33. Qxf7+ {[%clk 0:00:50]}  Kh8 {[%clk 0:00:08]} 34. Bxc4 {[%clk 0:00:50]}  Qe1+ {[%clk 0:00:04]} 35. Bf1 {[%clk 0:00:48]}  Qxe5 {[%clk 0:00:05]} 36. e7 {[%clk 0:00:48]} 1-0


[Site "https://www.chess.com"]

[Event "Titled Tuesday Blitz April 19 Early 2022"]
[White "Indjic, Aleksandar"]
[Black "Krishna, C R G"]
[WhiteFideId "911925"]
[BlackFideId "5018625"]
[WhiteElo "2616"]
[BlackElo "2332"]
[Result "0-1"]
[Round "03"]
[TimeControl "180+1"]
[Date "2022.04.19"]
[WhiteClock "0:00:04"]
[BlackClock "0:00:34"]

1. d4 {[%clk 0:03:00]}  d5 {[%clk 0:02:57]} 2. c4 {[%clk 0:02:58]}  e6 {[%clk 0:02:57]} 3. Nf3 {[%clk 0:02:57]}  Nf6 {[%clk 0:02:57]} 4. Nc3 {[%clk 0:02:57]}  Nbd7 {[%clk 0:02:56]} 5. cxd5 {[%clk 0:02:54]}  exd5 {[%clk 0:02:56]} 6. Qc2 {[%clk 0:02:55]}  c5 {[%clk 0:02:51]} 7. Bf4 {[%clk 0:02:48]}  cxd4 {[%clk 0:02:41]} 8. Nxd4 {[%clk 0:02:47]}  Bc5 {[%clk 0:02:39]} 9. e3 {[%clk 0:02:45]}  O-O {[%clk 0:02:39]} 10. Bd3 {[%clk 0:02:42]}  Bxd4 {[%clk 0:02:38]} 11. exd4 {[%clk 0:02:42]}  Re8+ {[%clk 0:02:38]} 12. Be2 {[%clk 0:02:38]}  Nb8 {[%clk 0:02:32]} 13. O-O {[%clk 0:02:32]}  Nc6 {[%clk 0:02:32]} 14. Rad1 {[%clk 0:02:32]}  h6 {[%clk 0:02:26]} 15. f3 {[%clk 0:02:11]}  Qb6 {[%clk 0:02:22]} 16. Qd2 {[%clk 0:02:10]}  Bf5 {[%clk 0:02:17]} 17. Be3 {[%clk 0:02:09]}  Re7 {[%clk 0:02:09]} 18. Bf2 {[%clk 0:02:07]}  Rae8 {[%clk 0:02:07]} 19. Rfe1 {[%clk 0:02:07]}  Re6 {[%clk 0:01:53]} 20. b3 {[%clk 0:02:01]}  Qa5 {[%clk 0:01:48]} 21. Bf1 {[%clk 0:01:59]}  a6 {[%clk 0:01:37]} 22. Rxe6 {[%clk 0:01:57]}  Rxe6 {[%clk 0:01:38]} 23. Na4 {[%clk 0:01:57]}  Qxd2 {[%clk 0:01:33]} 24. Rxd2 {[%clk 0:01:58]}  Nd7 {[%clk 0:01:34]} 25. Nc3 {[%clk 0:01:48]}  Nf6 {[%clk 0:01:31]} 26. g4 {[%clk 0:01:47]}  Bg6 {[%clk 0:01:28]} 27. h4 {[%clk 0:01:46]}  Re8 {[%clk 0:01:22]} 28. h5 {[%clk 0:01:43]}  Bh7 {[%clk 0:01:21]} 29. Kh2 {[%clk 0:01:43]}  g5 {[%clk 0:01:10]} 30. Kg3 {[%clk 0:01:34]}  Nd8 {[%clk 0:01:04]} 31. Re2 {[%clk 0:01:23]}  Ne6 {[%clk 0:01:04]} 32. Re5 {[%clk 0:01:22]}  Rc8 {[%clk 0:00:56]} 33. Nxd5 {[%clk 0:01:21]}  Nxd5 {[%clk 0:00:57]} 34. Rxd5 {[%clk 0:01:21]}  Rc1 {[%clk 0:00:57]} 35. Be2 {[%clk 0:01:11]}  Nf4 {[%clk 0:00:56]} 36. Rd8+ {[%clk 0:01:10]}  Kg7 {[%clk 0:00:56]} 37. Re8 {[%clk 0:01:00]}  Rh1 {[%clk 0:00:54]} 38. Be3 {[%clk 0:00:29]}  Rh3+ {[%clk 0:00:53]} 39. Kf2 {[%clk 0:00:28]}  Rh2+ {[%clk 0:00:54]} 40. Kf1 {[%clk 0:00:25]}  Rxe2 {[%clk 0:00:52]} 41. d5 {[%clk 0:00:26]}  Bd3 {[%clk 0:00:52]} 42. Kg1 {[%clk 0:00:23]}  Nxd5 {[%clk 0:00:43]} 43. Bd4+ {[%clk 0:00:22]}  f6 {[%clk 0:00:43]} 44. Rd8 {[%clk 0:00:22]}  Nf4 {[%clk 0:00:42]} 45. Rd7+ {[%clk 0:00:21]}  Kg8 {[%clk 0:00:42]} 46. Bxf6 {[%clk 0:00:21]}  Rg2+ {[%clk 0:00:37]} 47. Kh1 {[%clk 0:00:21]}  Rf2 {[%clk 0:00:37]} 48. Bg7 {[%clk 0:00:14]}  Be2 {[%clk 0:00:34]} 49. Bxh6 {[%clk 0:00:03]}  Bxf3+ {[%clk 0:00:34]} 50. Kg1 {[%clk 0:00:04]}  Nh3# {[%clk 0:00:34]} 0-1


[Site "https://www.chess.com"]

[Event "Titled Tuesday Blitz April 19 Early 2022"]
[White "Ingebretsen, Jens E"]
[Black "Shirov, Alexei"]
[WhiteFideId "1522965"]
[BlackFideId "2209390"]
[WhiteElo "2072"]
[BlackElo "2678"]
[Result "0-1"]
[Round "03"]
[TimeControl "180+1"]
[Date "2022.04.19"]
[WhiteClock "0:00:32"]
[BlackClock "0:01:38"]

1. c4 {[%clk 0:03:00]}  c6 {[%clk 0:02:59]} 2. Nc3 {[%clk 0:02:58]}  d5 {[%clk 0:02:59]} 3. e3 {[%clk 0:02:59]}  Nf6 {[%clk 0:02:57]} 4. Nf3 {[%clk 0:02:58]}  Nbd7 {[%clk 0:02:56]} 5. b3 {[%clk 0:02:59]}  e5 {[%clk 0:02:54]} 6. Bb2 {[%clk 0:02:59]}  e4 {[%clk 0:02:53]} 7. Nd4 {[%clk 0:02:58]}  c5 {[%clk 0:02:47]} 8. Nc2 {[%clk 0:02:49]}  d4 {[%clk 0:02:33]} 9. exd4 {[%clk 0:02:45]}  cxd4 {[%clk 0:02:33]} 10. Nxd4 {[%clk 0:02:44]}  Bc5 {[%clk 0:02:33]} 11. Nc2 {[%clk 0:02:38]}  Ne5 {[%clk 0:02:30]} 12. Ne3 {[%clk 0:02:06]}  O-O {[%clk 0:02:27]} 13. Nxe4 {[%clk 0:01:44]}  Nxe4 {[%clk 0:02:26]} 14. Bxe5 {[%clk 0:01:44]}  Re8 {[%clk 0:02:26]} 15. Bb2 {[%clk 0:01:23]}  Bxe3 {[%clk 0:02:21]} 16. dxe3 {[%clk 0:01:13]}  Qa5+ {[%clk 0:02:20]} 17. Ke2 {[%clk 0:01:14]}  Bg4+ {[%clk 0:02:18]} 18. f3 {[%clk 0:01:13]}  Rad8 {[%clk 0:02:18]} 19. Bd4 {[%clk 0:01:07]}  Nc3+ {[%clk 0:01:58]} 20. Bxc3 {[%clk 0:01:06]}  Rxd1 {[%clk 0:01:53]} 21. Bxa5 {[%clk 0:01:02]}  Rxa1 {[%clk 0:01:52]} 22. Bc3 {[%clk 0:00:42]}  Rxa2+ {[%clk 0:01:51]} 23. Kd3 {[%clk 0:00:43]}  Bd7 {[%clk 0:01:40]} 24. Be2 {[%clk 0:00:38]}  b5 {[%clk 0:01:39]} 25. c5 {[%clk 0:00:32]}  b4 {[%clk 0:01:38]} 0-1


[Site "https://www.chess.com"]

[Event "Titled Tuesday Blitz April 19 Early 2022"]
[White "Jakubowski, Krzysztof"]
[Black "Lach, Aleksandra"]
[WhiteFideId "1112848"]
[BlackFideId "1134299"]
[WhiteElo "2365"]
[BlackElo "2172"]
[Result "1-0"]
[Round "03"]
[TimeControl "180+1"]
[Date "2022.04.19"]
[WhiteClock "0:00:04"]
[BlackClock "0:00:01"]

1. d4 {[%clk 0:03:00]}  f5 {[%clk 0:02:59]} 2. c4 {[%clk 0:03:00]}  Nf6 {[%clk 0:02:59]} 3. Nc3 {[%clk 0:02:59]}  d6 {[%clk 0:02:59]} 4. Bg5 {[%clk 0:02:56]}  Nbd7 {[%clk 0:03:00]} 5. Qc2 {[%clk 0:02:55]}  g6 {[%clk 0:02:59]} 6. O-O-O {[%clk 0:02:55]}  c6 {[%clk 0:02:56]} 7. h4 {[%clk 0:02:50]}  h6 {[%clk 0:02:53]} 8. Bxf6 {[%clk 0:02:47]}  Nxf6 {[%clk 0:02:52]} 9. Nh3 {[%clk 0:02:46]}  Bg7 {[%clk 0:02:14]} 10. e3 {[%clk 0:02:30]}  O-O {[%clk 0:02:03]} 11. Nf4 {[%clk 0:02:29]}  Qe8 {[%clk 0:02:04]} 12. h5 {[%clk 0:02:25]}  g5 {[%clk 0:01:56]} 13. Ng6 {[%clk 0:02:25]}  Rf7 {[%clk 0:01:56]} 14. Bd3 {[%clk 0:02:11]}  Ng4 {[%clk 0:01:36]} 15. Rde1 {[%clk 0:01:56]}  e5 {[%clk 0:01:37]} 16. f3 {[%clk 0:01:48]}  e4 {[%clk 0:01:37]} 17. fxe4 {[%clk 0:01:29]}  fxe4 {[%clk 0:01:31]} 18. Nxe4 {[%clk 0:01:29]}  Qd8 {[%clk 0:01:27]} 19. Rhf1 {[%clk 0:01:28]}  Rxf1 {[%clk 0:01:06]} 20. Bxf1 {[%clk 0:01:27]}  d5 {[%clk 0:01:03]} 21. cxd5 {[%clk 0:01:24]}  cxd5 {[%clk 0:01:04]} 22. Nc3 {[%clk 0:01:23]}  Be6 {[%clk 0:00:57]} 23. Bd3 {[%clk 0:01:15]}  Rc8 {[%clk 0:00:57]} 24. Kb1 {[%clk 0:01:14]}  a6 {[%clk 0:00:55]} 25. Bf5 {[%clk 0:01:14]}  Qd7 {[%clk 0:00:50]} 26. Bxe6+ {[%clk 0:01:10]}  Qxe6 {[%clk 0:00:50]} 27. Qb3 {[%clk 0:01:08]}  Qf5+ {[%clk 0:00:41]} 28. Ka1 {[%clk 0:01:02]}  Qf2 {[%clk 0:00:32]} 29. Rc1 {[%clk 0:00:43]}  Kh7 {[%clk 0:00:22]} 30. Qxb7 {[%clk 0:00:39]}  Qxe3 {[%clk 0:00:20]} 31. Rb1 {[%clk 0:00:35]}  Rd8 {[%clk 0:00:16]} 32. Qc7 {[%clk 0:00:20]}  Re8 {[%clk 0:00:13]} 33. Nxd5 {[%clk 0:00:18]}  Qxd4 {[%clk 0:00:14]} 34. Nc3 {[%clk 0:00:14]}  Ne3 {[%clk 0:00:12]} 35. a3 {[%clk 0:00:12]}  Nc2+ {[%clk 0:00:13]} 36. Ka2 {[%clk 0:00:12]}  Ne3 {[%clk 0:00:06]} 37. Qc6 {[%clk 0:00:11]}  Qd3 {[%clk 0:00:04]} 38. Rc1 {[%clk 0:00:10]}  Re4 {[%clk 0:00:03]} 39. Qxe4 {[%clk 0:00:09]}  Qd2 {[%clk 0:00:02]} 40. Nf8+ {[%clk 0:00:08]}  Kg8 {[%clk 0:00:02]} 41. Re1 {[%clk 0:00:06]}  Nd1 {[%clk 0:00:01]} 42. Qe6+ {[%clk 0:00:05]}  Kxf8 {[%clk 0:00:01]} 43. Qe8# {[%clk 0:00:04]} 1-0


[Site "https://www.chess.com"]

[Event "Titled Tuesday Blitz April 19 Early 2022"]
[White "Karavaeva, Olga"]
[Black "Constantinou, Peter"]
[WhiteFideId "4124111"]
[BlackFideId "413038"]
[WhiteElo "2105"]
[BlackElo "2230"]
[Result "1-0"]
[Round "03"]
[TimeControl "180+1"]
[Date "2022.04.19"]
[WhiteClock "0:01:41"]
[BlackClock "0:01:35"]

1. c4 {[%clk 0:03:00]}  e5 {[%clk 0:02:56]} 2. Nc3 {[%clk 0:03:00]}  Nc6 {[%clk 0:02:56]} 3. g3 {[%clk 0:03:01]}  g6 {[%clk 0:02:56]} 4. Bg2 {[%clk 0:03:01]}  Bg7 {[%clk 0:02:57]} 5. Nf3 {[%clk 0:03:01]}  d6 {[%clk 0:02:57]} 6. h3 {[%clk 0:03:00]}  h6 {[%clk 0:02:58]} 7. b3 {[%clk 0:03:00]}  Be6 {[%clk 0:02:57]} 8. Bb2 {[%clk 0:02:59]}  Nge7 {[%clk 0:02:58]} 9. O-O {[%clk 0:02:57]}  O-O {[%clk 0:02:57]} 10. e3 {[%clk 0:02:57]}  d5 {[%clk 0:02:57]} 11. cxd5 {[%clk 0:02:57]}  Nxd5 {[%clk 0:02:58]} 12. d4 {[%clk 0:02:55]}  exd4 {[%clk 0:02:54]} 13. Nxd4 {[%clk 0:02:54]}  Nxd4 {[%clk 0:02:54]} 14. exd4 {[%clk 0:02:55]}  c6 {[%clk 0:02:53]} 15. Re1 {[%clk 0:02:51]}  Nxc3 {[%clk 0:02:42]} 16. Bxc3 {[%clk 0:02:51]}  Bd5 {[%clk 0:02:43]} 17. Qd3 {[%clk 0:02:42]}  Bxg2 {[%clk 0:02:22]} 18. Kxg2 {[%clk 0:02:41]}  Qd7 {[%clk 0:02:22]} 19. Rad1 {[%clk 0:02:38]}  Rad8 {[%clk 0:02:21]} 20. Re4 {[%clk 0:02:27]}  Rfe8 {[%clk 0:02:21]} 21. Rde1 {[%clk 0:02:23]}  Qd5 {[%clk 0:02:19]} 22. f3 {[%clk 0:02:18]}  Rxe4 {[%clk 0:02:11]} 23. fxe4 {[%clk 0:02:19]}  Qd7 {[%clk 0:02:10]} 24. Rd1 {[%clk 0:02:12]}  Re8 {[%clk 0:02:10]} 25. Qf3 {[%clk 0:02:03]}  Qe7 {[%clk 0:02:02]} 26. Re1 {[%clk 0:02:03]}  c5 {[%clk 0:02:01]} 27. dxc5 {[%clk 0:02:02]}  Qxc5 {[%clk 0:01:59]} 28. Bxg7 {[%clk 0:02:01]}  Kxg7 {[%clk 0:02:00]} 29. Re2 {[%clk 0:01:57]}  Re7 {[%clk 0:01:59]} 30. h4 {[%clk 0:01:54]}  h5 {[%clk 0:01:58]} 31. a4 {[%clk 0:01:49]}  a5 {[%clk 0:01:58]} 32. e5 {[%clk 0:01:46]}  Rxe5 {[%clk 0:01:42]} 33. Rxe5 {[%clk 0:01:47]}  Qxe5 {[%clk 0:01:42]} 34. Qxb7 {[%clk 0:01:46]}  Qe2+ {[%clk 0:01:43]} 35. Kg1 {[%clk 0:01:44]}  Qe1+ {[%clk 0:01:43]} 36. Kg2 {[%clk 0:01:44]}  Qe2+ {[%clk 0:01:40]} 37. Kg1 {[%clk 0:01:43]}  Qe3+ {[%clk 0:01:40]} 38. Kg2 {[%clk 0:01:42]}  Qe4+ {[%clk 0:01:35]} 39. Qxe4 {[%clk 0:01:41]} 1-0


[Site "https://www.chess.com"]

[Event "Titled Tuesday Blitz April 19 Early 2022"]
[White "Khamdamova, Afruza"]
[Black "San, Thit Lwin"]
[WhiteFideId "14210444"]
[BlackFideId "13001272"]
[WhiteElo "1660"]
[BlackElo "2232"]
[Result "1-0"]
[Round "03"]
[TimeControl "180+1"]
[Date "2022.04.19"]
[WhiteClock "0:00:10"]
[BlackClock "0:00:03"]

1. e4 {[%clk 0:03:00]}  Nf6 {[%clk 0:03:00]} 2. e5 {[%clk 0:03:00]}  Nd5 {[%clk 0:03:01]} 3. d4 {[%clk 0:03:00]}  d6 {[%clk 0:03:01]} 4. Nf3 {[%clk 0:03:01]}  Bg4 {[%clk 0:03:01]} 5. exd6 {[%clk 0:02:58]}  cxd6 {[%clk 0:03:01]} 6. c4 {[%clk 0:02:54]}  Nb6 {[%clk 0:03:00]} 7. h3 {[%clk 0:02:54]}  Bh5 {[%clk 0:03:00]} 8. Nc3 {[%clk 0:02:51]}  e6 {[%clk 0:03:00]} 9. b3 {[%clk 0:02:42]}  Be7 {[%clk 0:03:00]} 10. Bb2 {[%clk 0:02:42]}  O-O {[%clk 0:03:00]} 11. Bd3 {[%clk 0:02:42]}  d5 {[%clk 0:02:57]} 12. c5 {[%clk 0:02:41]}  Nc8 {[%clk 0:02:56]} 13. O-O {[%clk 0:02:41]}  Nc6 {[%clk 0:02:56]} 14. Be2 {[%clk 0:02:30]}  Bf6 {[%clk 0:02:53]} 15. g4 {[%clk 0:02:20]}  Bg6 {[%clk 0:02:52]} 16. a3 {[%clk 0:02:14]}  h5 {[%clk 0:02:49]} 17. Kg2 {[%clk 0:02:11]}  hxg4 {[%clk 0:02:41]} 18. hxg4 {[%clk 0:02:11]}  Be4 {[%clk 0:02:42]} 19. Nxe4 {[%clk 0:02:01]}  dxe4 {[%clk 0:02:40]} 20. Ne5 {[%clk 0:02:01]}  Bxe5 {[%clk 0:02:36]} 21. dxe5 {[%clk 0:02:00]}  N8e7 {[%clk 0:02:36]} 22. Qd6 {[%clk 0:01:48]}  Ng6 {[%clk 0:02:28]} 23. Qxd8 {[%clk 0:01:28]}  Rfxd8 {[%clk 0:02:25]} 24. Rfe1 {[%clk 0:01:19]}  Ncxe5 {[%clk 0:02:13]} 25. Bxe5 {[%clk 0:01:12]}  Nxe5 {[%clk 0:02:12]} 26. Bd1 {[%clk 0:01:08]}  f5 {[%clk 0:02:10]} 27. gxf5 {[%clk 0:01:05]}  exf5 {[%clk 0:02:10]} 28. b4 {[%clk 0:01:04]}  Kf7 {[%clk 0:02:05]} 29. Bb3+ {[%clk 0:01:03]}  Kf6 {[%clk 0:02:05]} 30. Red1 {[%clk 0:00:57]}  g5 {[%clk 0:01:56]} 31. Bd5 {[%clk 0:00:55]}  Rab8 {[%clk 0:01:52]} 32. Bb3 {[%clk 0:00:46]}  Nd3 {[%clk 0:01:47]} 33. Bc2 {[%clk 0:00:43]}  Nf4+ {[%clk 0:01:45]} 34. Kf1 {[%clk 0:00:42]}  Rh8 {[%clk 0:01:40]} 35. Rd6+ {[%clk 0:00:41]}  Ke5 {[%clk 0:01:40]} 36. Kg1 {[%clk 0:00:41]}  Rbd8 {[%clk 0:01:31]} 37. Rad1 {[%clk 0:00:40]}  Rxd6 {[%clk 0:01:22]} 38. Rxd6 {[%clk 0:00:39]}  Ne2+ {[%clk 0:01:22]} 39. Kf1 {[%clk 0:00:36]}  Nd4 {[%clk 0:01:22]} 40. Ba4 {[%clk 0:00:35]}  f4 {[%clk 0:01:18]} 41. Rd7 {[%clk 0:00:32]}  f3 {[%clk 0:01:12]} 42. Ke1 {[%clk 0:00:31]}  Rh1+ {[%clk 0:01:08]} 43. Kd2 {[%clk 0:00:31]}  Rf1 {[%clk 0:00:53]} 44. Rxb7 {[%clk 0:00:25]}  Rxf2+ {[%clk 0:00:52]} 45. Kc3 {[%clk 0:00:25]}  Ra2 {[%clk 0:00:46]} 46. Re7+ {[%clk 0:00:24]}  Ne6 {[%clk 0:00:43]} 47. Bb3 {[%clk 0:00:23]}  Rxa3 {[%clk 0:00:39]} 48. Rxe6+ {[%clk 0:00:23]}  Kf5 {[%clk 0:00:38]} 49. Re8 {[%clk 0:00:22]}  g4 {[%clk 0:00:34]} 50. Kb2 {[%clk 0:00:20]}  Rxb3+ {[%clk 0:00:30]} 51. Kxb3 {[%clk 0:00:21]}  g3 {[%clk 0:00:30]} 52. Rg8 {[%clk 0:00:20]}  f2 {[%clk 0:00:28]} 53. Rf8+ {[%clk 0:00:19]}  Kg4 {[%clk 0:00:27]} 54. c6 {[%clk 0:00:18]}  g2 {[%clk 0:00:23]} 55. c7 {[%clk 0:00:18]}  f1=Q {[%clk 0:00:20]} 56. c8=Q+ {[%clk 0:00:19]}  Kg3 {[%clk 0:00:13]} 57. Rg8+ {[%clk 0:00:18]}  Kh2 {[%clk 0:00:12]} 58. Rh8+ {[%clk 0:00:18]}  Kg1 {[%clk 0:00:11]} 59. Qc5+ {[%clk 0:00:18]}  Qf2 {[%clk 0:00:11]} 60. Kc3 {[%clk 0:00:18]}  e3 {[%clk 0:00:09]} 61. Rf8 {[%clk 0:00:12]}  Qd2+ {[%clk 0:00:08]} 62. Kb3 {[%clk 0:00:11]}  Qd1+ {[%clk 0:00:08]} 63. Kc4 {[%clk 0:00:10]}  Qc2+ {[%clk 0:00:09]} 64. Kd4 {[%clk 0:00:09]}  Qd2+ {[%clk 0:00:08]} 65. Ke4 {[%clk 0:00:09]}  Qe2 {[%clk 0:00:04]} 66. Qxe3+ {[%clk 0:00:08]}  Qxe3+ {[%clk 0:00:04]} 67. Kxe3 {[%clk 0:00:09]}  Kh2 {[%clk 0:00:03]} 68. Rh8+ {[%clk 0:00:09]}  Kg1 {[%clk 0:00:03]} 69. Rg8 {[%clk 0:00:09]}  Kh2 {[%clk 0:00:03]} 70. Kf2 {[%clk 0:00:09]}  g1=Q+ {[%clk 0:00:02]} 71. Rxg1 {[%clk 0:00:09]}  Kh3 {[%clk 0:00:03]} 72. Rg7 {[%clk 0:00:09]}  Kh4 {[%clk 0:00:03]} 73. Rxa7 {[%clk 0:00:09]}  Kh5 {[%clk 0:00:04]} 74. b5 {[%clk 0:00:09]}  Kg4 {[%clk 0:00:03]} 75. b6 {[%clk 0:00:10]} 1-0


[Site "https://www.chess.com"]